fUSD/lending_fUSD_20250622
["ID","MTS","AMOUNT","RATE_DAILY","PERIOD"]
[366946388,1750597841705,-150.0,0.00020574,2]
[366946389,1750597841714,-150.0,0.00020574,2]
[366946390,1750597841723,-455.61,0.00020574,2]
[366946391,1750597841733,-343.85,0.00020574,2]
[366946392,1750597841743,-455.61,0.00020574,2]
[366946393,1750597841753,-455.61,0.00020574,2]
[366946394,1750597841762,-1000.0,0.00020595,2]
[366946395,1750597841772,-3674.72,0.000206,2]
[366946396,1750597841781,-3433.48554,0.000206,2]
[366946397,1750597841790,-1000.0,0.000206,2]
[366946398,1750597841799,-5877.1361303,0.000206,2]
[366946399,1750597841809,-5872.97542461,0.000206,2]
[366946400,1750597841819,-150.0,0.00020646,2]
[366946401,1750597841828,-370.62,0.0002065,2]
[366946402,1750597841837,-156.587,0.00020657,2]
[366946403,1750597841846,-150.0,0.00020659,2]
[366946404,1750597841856,-165.83,0.0002066,2]
[366946405,1750597841865,-150.0,0.00020661,2]
[366946406,1750597841875,-150.0,0.00020667,2]
[366946407,1750597841884,-150.0,0.0002067,2]
[366946408,1750597841893,-150.0,0.00020679,2]
[366946409,1750597841902,-150.0,0.00020681,2]
[366946410,1750597841912,-150.0,0.00020683,2]
[366946411,1750597841922,-150.0,0.00020685,2]
[366946412,1750597841932,-150.0,0.00020686,2]
[366946413,1750597841941,-150.0,0.00020693,2]
[366946414,1750597841951,-150.0,0.00020694,2]
[366946415,1750597841960,-1000.0,0.00020695,2]
[366946416,1750597841970,-179.69,0.000207,2]
[366946417,1750597841979,-420.0,0.00020709,2]
[366946418,1750597841989,-150.0,0.0002071,2]
[366946419,1750597841999,-150.0,0.00020715,2]
[366946420,1750597842008,-150.0,0.00020717,2]
[366946421,1750597842017,-1000.0,0.0002072,2]
[366946422,1750597842026,-150.0,0.0002072,2]
[366946423,1750597842036,-150.0,0.00020721,2]
[366946424,1750597842045,-150.0,0.00020725,2]
[366946425,1750597842055,-1000.0,0.00020728,2]
[366946426,1750597842064,-1000.0,0.0002073,2]
[366946427,1750597842073,-150.0,0.00020731,2]
[366946428,1750597842083,-150.0,0.00020737,2]
[366946429,1750597842092,-239.24451568,0.00020737,2]
[366946430,1750597842102,-150.0,0.00020738,2]
[366946431,1750597842111,-150.0,0.0002074,2]
[366946432,1750597842122,-150.0,0.00020742,2]
[366946433,1750597842131,-1000.0,0.00020744,2]
[366946434,1750597842141,-222.33577157,0.00020744,2]
[366946435,1750597842151,-150.0,0.00020746,2]
[366946436,1750597842160,-34815.300092,0.00020746,2]
[366946437,1750597842170,-150.0,0.00020746,2]
[366946438,1750597842179,-3542.09336681,0.00020746,2]
[366946439,1750597842189,-150.0,0.00020749,2]
[366946440,1750597842198,-150.0,0.00020751,2]
[366946441,1750597842208,-150.0,0.00020766,2]
[366946442,1750597842217,-150.0,0.00020769,2]
[366946443,1750597842227,-150.0,0.00020774,2]
[366946444,1750597842237,-150.0,0.00020776,2]
[366946445,1750597842247,-770.11889455,0.00020777,2]
[366946446,1750597842256,-150.0,0.00020782,2]
[366946447,1750597842267,-150.0,0.00020783,2]
[366946448,1750597842276,-150.0,0.00020789,2]
[366946449,1750597842286,-150.0,0.00020794,2]
[366946450,1750597842295,-273.97434236,0.00020796,2]
[366946451,1750597842304,-150.0,0.00020808,2]
[366946452,1750597842314,-1680.0,0.0002081,2]
[366946453,1750597842323,-150.0,0.00020811,2]
[366946454,1750597842333,-200.0,0.00020813,2]
[366946455,1750597842342,-1000.0,0.00020816,2]
[366946456,1750597842351,-1000.0,0.00020821,2]
[366946457,1750597842361,-1000.0,0.00020821,2]
[366946458,1750597842371,-1000.0,0.00020821,2]
[366946459,1750597842380,-329.60166473,0.00020821,2]
[366946460,1750597842389,-182.45941547,0.00020821,2]
[366946461,1750597842401,-655.72322114,0.00020821,2]
[366946462,1750597842411,-1000.0,0.00020821,2]
[366946463,1750597842420,-1000.0,0.00020821,2]
[366946464,1750597842429,-379.59481015,0.00020821,2]
[366946465,1750597842439,-1000.0,0.00020821,2]
[366946466,1750597842449,-501.8662717,0.00020821,2]
[366946467,1750597842458,-501.26858768,0.00020821,2]
[366946468,1750597842467,-200.0,0.00020823,2]
[366946469,1750597842477,-150.0,0.00020825,2]
[366946470,1750597842488,-150.0,0.00020826,2]
[366946471,1750597842497,-150.0,0.00020826,2]
[366946472,1750597842506,-150.0,0.00020828,2]
[366946473,1750597842516,-150.0,0.00020832,2]
[366946474,1750597842525,-779.4828329,0.0002084,2]
[366946475,1750597842535,-150.0,0.00020842,2]
[366946476,1750597842545,-150.0,0.00020844,2]
[366946477,1750597842555,-150.0,0.00020864,2]
[366946478,1750597842565,-150.0,0.00020868,2]
[366946479,1750597842575,-150.0,0.00020869,2]
[366946480,1750597842587,-150.0,0.0002087,2]
[366946481,1750597842596,-150.0,0.00020876,2]
[366946482,1750597842606,-1000.0,0.0002088,2]
[366946483,1750597842614,-150.0,0.00020885,2]
[366946484,1750597842624,-2000.0,0.00020887,2]
[366946485,1750597842633,-2000.0,0.00020887,2]
[366946486,1750597842642,-1007.9143,0.00020887,2]
[366946487,1750597842651,-2000.0,0.00020887,2]
[366946488,1750597842660,-150.0,0.00020891,2]
[366946489,1750597842670,-3674.72,0.000209,2]
[366946490,1750597842679,-387.0,0.000209,2]
[366946491,1750597842688,-1900.0,0.000209,7]
[366946492,1750597842697,-165.7,0.000209,4]
[366946493,1750597842706,-150.0,0.00020906,2]
[366946494,1750597842716,-150.0,0.00020908,2]
[366946495,1750597842725,-1746.0,0.00020918,2]
[366946497,1750597842734,-168.0,0.00020928,2]
[366946499,1750597842743,-150.0,0.00020943,2]
[366946501,1750597842752,-801.57849977,0.0002097,2]
[366946503,1750597842761,-2014.3928472,0.00020972,2]
[366946504,1750597842771,-98227.5795857,0.00020972,2]
[366946505,1750597842780,-167.544993,0.00020972,2]
[366946506,1750597842789,-150.0,0.00020979,2]
[366946507,1750597842798,-151.0,0.00020985,2]
[366946508,1750597842807,-151.0,0.00020985,2]
[366946509,1750597842816,-151.0,0.00020985,2]
[366946510,1750597842827,-151.0,0.00020985,2]
[366946511,1750597842837,-154.362309,0.00020985,2]
[366946512,1750597842847,-300.0,0.00020985,2]
[366946513,1750597842856,-156.584189,0.00020986,2]
[366946514,1750597842866,-151.0,0.00020986,2]
[366946515,1750597842875,-152.998945,0.00020986,2]
[366946516,1750597842884,-151.0,0.00020986,2]
[366946517,1750597842893,-151.0,0.00020986,2]
[366946518,1750597842903,-151.0,0.00020986,2]
[366946519,1750597842911,-151.0,0.00020986,2]
[366946520,1750597842921,-151.0,0.00020986,2]
[366946521,1750597842930,-151.0,0.00020986,2]
[366946522,1750597842940,-151.0,0.00020986,2]
[366946523,1750597842949,-151.0,0.00020986,2]
[366946524,1750597842959,-151.0,0.00020986,2]
[366946525,1750597842968,-151.0,0.00020986,2]
[366946526,1750597842978,-151.0,0.00020986,2]
[366946527,1750597842987,-151.0,0.00020986,2]
[366946528,1750597842996,-201.216175,0.00020986,2]
[366946529,1750597843006,-151.0,0.00020986,2]
[366946530,1750597843015,-151.0,0.00020986,2]
[366946531,1750597843024,-151.0,0.00020986,2]
[366946532,1750597843033,-151.0,0.00020986,2]
[366946533,1750597843043,-290.477561,0.00020986,2]
[366946534,1750597843052,-151.0,0.00020986,2]
[366946535,1750597843061,-151.0,0.00020986,2]
[366946536,1750597843071,-151.0,0.00020986,2]
[366946537,1750597843080,-151.0,0.00020986,2]
[366946538,1750597843089,-151.0,0.00020986,2]
[366946539,1750597843099,-151.0,0.00020986,2]
[366946540,1750597843109,-151.0,0.00020986,2]
[366946541,1750597843119,-151.0,0.00020986,2]
[366946542,1750597843129,-151.0,0.00020986,2]
[366946543,1750597843139,-151.0,0.00020986,2]
[366946544,1750597843149,-151.0,0.00020986,2]
[366946545,1750597843158,-151.0,0.00020986,2]
[366946546,1750597843168,-151.0,0.00020986,2]
[366946547,1750597843177,-151.0,0.00020986,2]
[366946548,1750597843187,-152.863227,0.00020986,2]
[366946549,1750597843197,-151.0,0.00020986,2]
[366946550,1750597843206,-151.0,0.00020986,2]
[366946551,1750597843215,-151.0,0.00020986,2]
[366946552,1750597843225,-151.827622,0.00020986,2]
[366946553,1750597843234,-203.703856,0.00020986,2]
[366946554,1750597843244,-203.703856,0.00020986,2]
[366946555,1750597843254,-203.703856,0.00020986,2]
[366946556,1750597843263,-203.703856,0.00020986,2]
[366946557,1750597843272,-203.703856,0.00020986,2]
[366946558,1750597843282,-203.703856,0.00020986,2]
[366946559,1750597843291,-244.26379,0.00020986,2]
[366946560,1750597843301,-244.26379,0.00020986,2]
[366946561,1750597843310,-244.26379,0.00020986,2]
[366946562,1750597843319,-244.26379,0.00020986,2]
[366946564,1750597843330,-244.26379,0.00020986,2]
[366946566,1750597843339,-244.26379,0.00020986,2]
[366946568,1750597843349,-151.0,0.00020986,2]
[366946570,1750597843358,-151.0,0.00020986,2]
[366946572,1750597843368,-151.0,0.00020986,2]
[366946574,1750597843377,-204.054934,0.00020986,2]
[366946576,1750597843386,-151.0,0.00020986,2]
[366946577,1750597843396,-151.0,0.00020986,2]
[366946580,1750597843410,-160.917405,0.00020986,2]
[366946581,1750597843420,-160.917405,0.00020986,2]
[366946584,1750597843429,-155.164571,0.00020986,2]
[366946586,1750597843439,-160.917405,0.00020986,2]
[366946587,1750597843449,-160.917405,0.00020986,2]
[366946590,1750597843458,-160.917405,0.00020986,2]
[366946591,1750597843467,-160.917405,0.00020986,2]
[366946594,1750597843478,-151.0,0.00020986,2]
[366946596,1750597843487,-151.0,0.00020986,2]
[366946597,1750597843496,-151.0,0.00020986,2]
[366946600,1750597843506,-151.0,0.00020986,2]
[366946602,1750597843515,-151.0,0.00020986,2]
[366946603,1750597843525,-151.0,0.00020986,2]
[366946606,1750597843535,-158.502679,0.00020986,2]
[366946607,1750597843544,-449.663828,0.00020986,2]
[366946610,1750597843553,-449.663828,0.00020986,2]
[366946612,1750597843562,-156.636763,0.00020986,2]
[366946613,1750597843572,-156.636763,0.00020986,2]
[366946615,1750597843581,-156.636763,0.00020986,2]
[366946617,1750597843590,-153.37885,0.00020986,2]
[366946619,1750597843599,-156.636763,0.00020986,2]
[366946622,1750597843608,-449.663828,0.00020986,2]
[366946624,1750597843617,-156.636763,0.00020986,2]
[366946626,1750597843627,-449.663828,0.00020986,2]
[366946628,1750597843636,-156.636763,0.00020986,2]
[366946629,1750597843646,-151.0,0.00020986,2]
[366946631,1750597843655,-227.289352,0.00020986,2]
[366946634,1750597843664,-227.289352,0.00020986,2]
[366946636,1750597843674,-227.289352,0.00020986,2]
[366946638,1750597843683,-227.289352,0.00020986,2]
[366946639,1750597843692,-151.0,0.00020986,2]
[366946642,1750597843701,-151.0,0.00020986,2]
[366946644,1750597843710,-151.0,0.00020986,2]
[366946646,1750597843719,-151.0,0.00020986,2]
[366946647,1750597843728,-151.0,0.00020986,2]
[366946649,1750597843738,-151.0,0.00020986,2]
[366946651,1750597843747,-252.976894,0.00020986,2]
[366946654,1750597843757,-252.976894,0.00020986,2]
[366946656,1750597843766,-151.0,0.00020986,2]
[366946658,1750597843775,-151.0,0.00020986,2]
[366946660,1750597843784,-151.0,0.00020986,2]
[366946662,1750597843793,-152.126494,0.00020986,2]
[366946664,1750597843802,-151.0,0.00020986,2]
[366946666,1750597843811,-151.0,0.00020986,2]
[366946668,1750597843820,-151.0,0.00020986,2]
[366946669,1750597843829,-151.0,0.00020986,2]
[366946672,1750597843839,-151.0,0.00020986,2]
[366946673,1750597843848,-151.0,0.00020986,2]
[366946675,1750597843858,-151.0,0.00020986,2]
[366946677,1750597843867,-278.034054,0.00020986,2]
[366946678,1750597843876,-151.0,0.00020986,2]
[366946679,1750597843886,-151.0,0.00020986,2]
[366946680,1750597843895,-151.0,0.00020986,2]
[366946681,1750597843904,-241.645668,0.00020986,2]
[366946682,1750597843913,-151.0,0.00020986,2]
[366946683,1750597843923,-151.0,0.00020986,2]
[366946684,1750597843932,-151.0,0.00020986,2]
[366946685,1750597843942,-151.0,0.00020986,2]
[366946686,1750597843951,-151.0,0.00020986,2]
[366946687,1750597843960,-151.0,0.00020986,2]
[366946688,1750597843970,-151.0,0.00020986,2]
[366946689,1750597843979,-151.0,0.00020986,2]
[366946690,1750597843988,-151.0,0.00020986,2]
[366946691,1750597843998,-151.0,0.00020986,2]
[366946692,1750597844007,-151.0,0.00020986,2]
[366946693,1750597844017,-151.0,0.00020986,2]
[366946694,1750597844026,-151.0,0.00020986,2]
[366946695,1750597844035,-254.221791,0.00020986,2]
[366946696,1750597844045,-178.654348,0.00020986,2]
[366946697,1750597844054,-945.565872,0.00020986,2]
[366946698,1750597844064,-945.565872,0.00020986,2]
[366946699,1750597844074,-151.0,0.00020986,2]
[366946700,1750597844084,-153.675557,0.00020986,2]
[366946701,1750597844093,-151.0,0.00020986,2]
[366946702,1750597844103,-151.0,0.00020986,2]
[366946703,1750597844112,-151.0,0.00020986,2]
[366946704,1750597844122,-151.0,0.00020986,2]
[366946705,1750597844131,-151.0,0.00020986,2]
[366946706,1750597844141,-151.0,0.00020986,2]
[366946707,1750597844150,-151.0,0.00020986,2]
[366946708,1750597844160,-151.0,0.00020986,2]
[366946709,1750597844169,-154.450705,0.00020986,2]
[366946710,1750597844178,-151.0,0.00020986,2]
[366946711,1750597844188,-214.052526,0.00020986,2]
[366946712,1750597844197,-151.0,0.00020986,2]
[366946713,1750597844207,-151.0,0.00020986,2]
[366946714,1750597844216,-151.0,0.00020986,2]
[366946715,1750597844225,-1749.2560679,0.00020986,2]
[366946716,1750597844235,-151.0,0.00020986,2]
[366946717,1750597844244,-151.0,0.00020986,2]
[366946718,1750597844254,-223.960344,0.00020986,2]
[366946719,1750597844263,-765.681044,0.00020986,2]
[366946720,1750597844272,-85892.5273866,0.00020986,2]
[366946721,1750597844282,-765.681044,0.00020986,2]
[366946722,1750597844291,-1863.510272,0.00020986,2]
[366946723,1750597844301,-1863.510272,0.00020986,2]
[366946724,1750597844310,-151.0,0.00020986,2]
[366946725,1750597844319,-151.0,0.00020986,2]
[366946726,1750597844328,-153.789939,0.00020986,2]
[366946727,1750597844338,-1564.4304644,0.00020986,2]
[366946728,1750597844347,-1342.1362426,0.00020986,2]
[366946729,1750597844356,-18391.6987434,0.00020986,2]
[366946730,1750597844366,-15778.3717519,0.00020986,2]
[366946731,1750597844375,-7060.3785847,0.00020986,2]
[366946732,1750597844384,-6070.8120578,0.00020986,2]
[366946733,1750597844395,-242.83,0.00020986,2]
[366946734,1750597844407,-8256.45446368,0.00020992,2]
[366946735,1750597844416,-1948448.42786254,0.00020992,3]
[366946739,1750597846008,-15009.75668964,0.00020992,3]
[366946745,1750597846232,-3866.95019455,0.00020992,3]
[366946747,1750597846248,-9408.24524384,0.00020992,3]
[366946750,1750597846260,-99622.99810066,0.00020992,3]
[366946769,1750597847207,-2471.25208389,0.00020058,2]
[366946770,1750597847218,-151.78003265,0.00020744,2]
[366946771,1750597847228,-252.15437114,0.00020744,2]
[366946772,1750597847238,-10471.53405903,0.00020992,3]
[366946773,1750597847251,-1390.11345,0.00020992,3]
[366946774,1750597847270,-510.43405741,0.00020992,3]
[366946775,1750597847297,-1152.09,0.00020992,3]
[366946776,1750597848361,-329.31,0.000193,2]
[366946777,1750597848371,-593.0,0.00019621,2]
[366946778,1750597848381,-1266.1791145,0.00020992,3]
[366946780,1750597887751,226.0,0.0001872,2]
[366946781,1750597932443,202.0,0.00017933,2]
[366946783,1750598056827,250.0,0.00015,2]
[366946797,1750598396456,219.19,0.00013699,2]
[366946803,1750598651836,202.0,0.00017247,2]
[366946807,1750598738158,8000.0,0.00016,2]
[366946808,1750598756035,10000.0,0.0001625,2]
[366946809,1750598765286,21407.1811496,0.00017,2]
[366946810,1750598765319,4520.13075216,0.00017,2]
[366946811,1750598765342,4072.68809824,0.00017,2]
[366946812,1750598772859,224.0,0.00017247,2]
[366946819,1750598829878,1139.54607605,0.00016435,2]
[366946855,1750598862154,202.0,0.00017247,2]
[366946856,1750598884323,4361.76582571,0.000153,5]
[366946857,1750598884347,1201.23417429,0.000153,5]
[366946859,1750598925346,8798.76582571,0.00013368,2]
[366946860,1750598925368,3948.8079081,0.00013368,2]
[366946863,1750598951464,201.0,0.00017247,2]
[366946886,1750599032071,-203.0,0.00017626,2]
[366946887,1750599032081,-182.15310555,0.00018045,2]
[366946888,1750599032091,-250.0,0.00018095,2]
[366946889,1750599032100,-446.84164223,0.00018122,2]
[366946890,1750599032109,-300.0,0.00018145,2]
[366946891,1750599032119,-200.0,0.00018294,7]
[366946892,1750599032128,-647.72,0.00018296,2]
[366946893,1750599032138,-200.0,0.0001832,2]
[366946894,1750599032148,-434.3,0.0001833,2]
[366946895,1750599032157,-677.42,0.00018331,2]
[366946896,1750599032167,-2899.75,0.00018337,2]
[366946897,1750599032177,-244.62005683,0.0001869,2]
[366946898,1750599032187,-1200.0,0.00018708,2]
[366946899,1750599032196,-1190.79020714,0.00018709,2]
[366946900,1750599032206,-166.89,0.00018876,2]
[366946901,1750599032216,-300.0,0.00018894,2]
[366946902,1750599032226,-1190.79020714,0.00018895,2]
[366946903,1750599032235,-203.0,0.0001891,3]
[366946904,1750599032249,-238.29,0.00018915,2]
[366946905,1750599032259,-238.29,0.0001892,2]
[366946906,1750599032268,-238.29,0.00018925,2]
[366946907,1750599032278,-238.29,0.0001893,2]
[366946908,1750599032288,-238.29,0.00018935,2]
[366946909,1750599032298,-238.29,0.0001894,2]
[366946910,1750599032307,-238.29,0.00018945,2]
[366946911,1750599032317,-238.29,0.0001895,2]
[366946912,1750599032326,-238.29,0.00018955,2]
[366946913,1750599032336,-238.29,0.0001896,2]
[366946914,1750599032347,-238.29,0.00018965,2]
[366946915,1750599032357,-238.29,0.0001897,2]
[366946916,1750599032367,-238.29,0.00018975,2]
[366946917,1750599032377,-350.0,0.0001898,2]
[366946918,1750599032387,-238.29,0.0001898,2]
[366946919,1750599032397,-238.29,0.00018985,2]
[366946920,1750599032407,-238.29,0.0001899,2]
[366946921,1750599032417,-238.29,0.00018995,2]
[366946922,1750599032427,-238.29,0.00019,2]
[366946923,1750599032437,-238.29,0.00019005,2]
[366946924,1750599032447,-238.29,0.0001901,2]
[366946925,1750599032457,-1896.07877357,0.0001904,2]
[366946926,1750599032467,-151.0,0.00019048,2]
[366946927,1750599032476,-187.78006526,0.00019048,2]
[366946929,1750599032486,-266.39880271,0.00019048,2]
[366946930,1750599032501,-1957.856,0.00019048,2]
[366946932,1750599032511,-207.4,0.00019048,2]
[366946934,1750599032521,-2030.296672,0.00019103,2]
[366946936,1750599032531,-166.12,0.00019122,2]
[366946937,1750599032541,-243.0,0.00019133,2]
[366946938,1750599032551,-2105.41764886,0.00019158,2]
[366946939,1750599032561,-243.0,0.00019207,2]
[366946940,1750599032571,-2183.31810187,0.00019213,2]
[366946941,1750599032581,-500.0,0.0001926,2]
[366946942,1750599032591,-2264.10087164,0.00019268,2]
[366946943,1750599032601,-243.0,0.00019291,2]
[366946944,1750599032611,-9485.27103708,0.00019298,2]
[366946945,1750599032628,-1547.22411681,0.00019298,2]
[366946946,1750599032640,-315.0,0.00019298,2]
[366946947,1750599032652,-313.5,0.00019298,2]
[366946948,1750599032694,-4587.75,0.00019298,2]
[366946949,1750599032713,-765.49,0.00019298,2]
[366946950,1750599032724,-3906.58659163,0.00019298,2]
[366946951,1750599032734,-500.0,0.000193,2]
[366946952,1750599032743,-4918.6748,0.000193,2]
[366946953,1750599032757,-1000.0,0.000193,2]
[366946954,1750599032766,-2347.87260389,0.00019323,2]
[366946955,1750599032776,-523.58606445,0.0001935,2]
[366946956,1750599032786,-2434.74389024,0.00019378,2]
[366946957,1750599032795,-2524.82941417,0.00019433,2]
[366946958,1750599032805,-2618.2481025,0.00019488,2]
[366946959,1750599032816,-392.43166859,0.00019543,2]
[366946960,1750599032825,-150.0,0.00019695,2]
[366946961,1750599032835,-243.0,0.00019763,2]
[366946962,1750599032844,-666.0,0.00019778,2]
[366946963,1750599032854,-11940.93335266,0.00019783,2]
[366946964,1750599032864,-1000.0,0.00019793,2]
[366946965,1750599032873,-9778.64,0.00019793,2]
[366946966,1750599032883,-420.0,0.00019795,2]
[366946967,1750599032892,-243.0,0.00019834,2]
[366946968,1750599032904,-250.0,0.0001985,2]
[366946969,1750599032915,-4745.61033288,0.00019889,2]
[366946970,1750599032926,-26.20317898,0.000199,2]
[366946984,1750599037991,-774.94710418,0.000199,2]
[366946985,1750599038005,-423.25,0.000199,2]
[366946986,1750599038109,-523.0,0.000199,2]
[366946987,1750599038121,-439.21357414,0.000199,2]
[366946988,1750599038141,-4623.54449308,0.000199,2]
[366946989,1750599038157,-16517.23977393,0.000199,2]
[366946990,1750599038170,-3571.07077662,0.000199,2]
[366946991,1750599038181,-4283.174087,0.000199,2]
[366946992,1750599038191,-1243.61905028,0.000199,2]
[366946993,1750599038202,-2500.0,0.000199,2]
[366946994,1750599038212,-3024.68710953,0.0001994,2]
[366946995,1750599038223,-2500.0,0.0001996,2]
[366946996,1750599038233,-500.0,0.0001996,5]
[366946997,1750599038244,-250.0,0.0001996,2]
[366946998,1750599038257,-434.41122275,0.0001996,5]
[366946999,1750599038270,-65.58877725,0.0001996,5]
[366947000,1750599038281,-628.22,0.0001999,3]
[366947001,1750599038292,-6429.47428635,0.0002,15]
[366947002,1750599038310,-4575.2777962,0.0002,15]
[366947003,1750599038322,-1897.47729683,0.0002,15]
[366947549,1750599043974,-203.0,0.00017626,2]
[366947550,1750599043985,-8596.99999999,0.0002,15]
[366947551,1750599044029,-98275.9644639,0.0002,15]
[366947554,1750599044039,-776.29480998,0.0002,7]
[366947556,1750599044049,-2147.55,0.0002,2]
[366947558,1750599044060,-2147.55,0.0002,2]
[366947560,1750599044069,-2147.55,0.0002,2]
[366947562,1750599044080,-1000.0,0.0002,2]
[366947564,1750599044091,-302.31400795,0.0002,2]
[366947566,1750599044101,-1316.05628377,0.0002,2]
[366947568,1750599044111,-572.721,0.00020017,2]
[366947570,1750599044120,-525.603,0.00020017,2]
[366947572,1750599044130,-1161.0,0.00020017,2]
[366947574,1750599044140,-7136.0,0.00020017,2]
[366947576,1750599044150,-3336.0,0.00020017,2]
[366947578,1750599044160,-156.0,0.00020025,2]
[366947580,1750599044171,-302.81789955,0.00020055,2]
[366947582,1750599044181,-243.0,0.00020091,2]
[366947584,1750599044191,-2147.55,0.000201,2]
[366947586,1750599044201,-1243.61905023,0.00020111,2]
[366947588,1750599044211,-219.19,0.00020187,2]
[366947590,1750599044221,-203.0,0.00020194,5]
[366947592,1750599044231,-151.0,0.00020291,2]
[366947594,1750599044241,-151.0,0.00020291,2]
[366947596,1750599044251,-151.0,0.00020291,2]
[366947598,1750599044265,-151.0,0.00020291,2]
[366947600,1750599044275,-151.0,0.00020291,2]
[366947602,1750599044286,-151.0,0.00020291,2]
[366947604,1750599044296,-151.0,0.00020291,2]
[366947606,1750599044307,-207.186243,0.00020291,2]
[366947608,1750599044318,-252.976894,0.00020291,2]
[366947610,1750599044329,-244.26379,0.00020291,2]
[366947612,1750599044340,-244.26379,0.00020291,2]
[366947614,1750599044351,-151.0,0.00020291,2]
[366947616,1750599044362,-151.0,0.00020291,2]
[366947618,1750599044376,-153.498088,0.00020291,2]
[366947621,1750599044386,-2374.93012132,0.00020294,2]
[366947622,1750599044396,-1243.61905023,0.00020321,2]
[366947625,1750599044407,-2465.79,0.000204,2]
[366947627,1750599044417,-156.587,0.00020417,2]
[366947629,1750599044427,-215.0738,0.00020417,2]
[366947631,1750599044437,-4283.174087,0.00020456,2]
[366947633,1750599044447,-1680.0,0.00020497,2]
[366947635,1750599044457,-2147.55,0.000205,2]
[366947637,1750599044467,-301.443,0.00020521,2]
[366947639,1750599044478,-1243.61905023,0.00020532,2]
[366947641,1750599044489,-868.56831125,0.00020558,2]
[366947643,1750599044499,-1059.465244,0.00020572,4]
[366947645,1750599044514,-992.64246944,0.00020572,2]
[366947647,1750599044524,-179.0,0.000206,5]
[366947649,1750599044535,-228.38,0.00020619,2]
[366947651,1750599044545,-163.37,0.00020619,2]
[366947654,1750599044556,-434.3,0.00020621,2]
[366947657,1750599044566,-1316.05628358,0.00020659,3]
[366947660,1750599044578,-300.0,0.000207,7]
[366947662,1750599044588,-4023.01,0.000207,2]
[366947664,1750599044598,-1000.0,0.00020714,2]
[366947666,1750599044608,-150.0,0.00020729,2]
[366947668,1750599044618,-150.0,0.00020735,2]
[366947670,1750599044629,-187.06101955,0.00020739,2]
[366947672,1750599044639,-1243.61905023,0.00020742,2]
[366947674,1750599044649,-150.0,0.00020744,2]
[366947676,1750599044660,-150.0,0.00020745,2]
[366947678,1750599044670,-150.0,0.00020755,2]
[366947680,1750599044680,-150.0,0.00020756,2]
[366947682,1750599044690,-150.0,0.00020762,2]
[366947684,1750599044701,-150.0,0.00020767,2]
[366947686,1750599044711,-150.0,0.00020767,2]
[366947688,1750599044721,-150.0,0.00020773,2]
[366947690,1750599044730,-150.0,0.00020777,2]
[366947693,1750599044741,-150.0,0.00020788,2]
[366947695,1750599044751,-10849.46898181,0.0002079,2]
[366947701,1750599044807,-2532.5,0.0002079,2]
[366947704,1750599044823,-1863.31426321,0.0002079,2]
[366947708,1750599044853,-3547.4823446,0.0002079,2]
[366947711,1750599044878,-21183.48838403,0.0002079,2]
[366947713,1750599044889,-150.0,0.00020796,2]
[366947715,1750599044899,-150.0,0.00020798,2]
[366947717,1750599044909,-150.0,0.000208,2]
[366947719,1750599044923,-700.0,0.000208,7]